bitfinex/quotes_SOLUSD_20250406
["timestamp","ask_amount","ask_price","bid_price","bid_amount"]
[1743967705647,0.063,107.52,107.51,31.56481565]
[1743967705820,0.063,107.53,107.51,63.1296313]
[1743967706029,0.063,107.53,107.52,40.86531565]
[1743967706438,0.063,107.53,107.52,72.71445444]
[1743967706634,0.063,107.53,107.52,72.4301313]
[1743967706832,0.063,107.53,107.52,40.86531565]
[1743967708026,0.063,107.55,107.52,76.9819598]
[1743967708257,0.063,107.57,107.56,31.56481565]
[1743967708931,0.063,107.57,107.55,31.56481565]
[1743967709130,0.063,107.57,107.56,31.56481565]
[1743967709328,0.063,107.57,107.52,243.06854415]
[1743967709561,0.063,107.57,107.56,31.56481565]
[1743967710046,0.063,107.57,107.56,40.86191565]
[1743967710548,9.46324193,107.61,107.56,40.86191565]
[1743967710732,9.46324193,107.61,107.57,31.56481565]
[1743967711845,9.46324193,107.61,107.57,40.86091565]
[1743967712350,9.46324193,107.61,107.6,31.56481565]
[1743967712535,9.46324193,107.61,107.57,40.3759]
[1743967712739,9.46324193,107.61,107.57,17.1353]
[1743967712940,9.46324193,107.61,107.58,31.56481565]
[1743967713141,41.02805758,107.61,107.56,9.2967]
[1743967713345,78.69694534,107.62,107.57,31.56481565]
[1743967713546,59.90513491,107.62,107.57,31.56481565]
[1743967713851,28.34031926,107.62,107.59,40.85841565]
[1743967714050,28.34031926,107.62,107.59,9.2936]
[1743967714355,28.34031926,107.62,107.6,31.56481565]
[1743967715763,28.34031926,107.62,107.61,31.56481565]
[1743967716241,28.34031926,107.62,107.59,32.5299]
[1743967716435,28.34031926,107.62,107.61,31.56481565]
[1743967716853,18.78031926,107.62,107.61,31.56481565]
[1743967717151,18.78031926,107.62,107.61,31.84913879]
[1743967717551,0.063,107.63,107.61,31.84913879]
[1743967717753,0.063,107.63,107.62,57.56481565]
[1743967718053,51.47325882,107.64,107.62,66.85671565]
[1743967718242,51.47325882,107.64,107.63,31.56481565]
[1743967718643,41.91325882,107.64,107.63,31.56481565]
[1743967718939,0.063,107.65,107.63,31.56481565]
[1743967719129,0.063,107.65,107.62,35.2919]
[1743967719542,0.063,107.65,107.64,31.56481565]
[1743967719937,0.063,107.65,107.64,40.85501565]
[1743967720138,0.063,107.65,107.63,9.2906]
[1743967720345,19.07613357,107.6,107.53,9.2988]
[1743967720551,26.56481565,107.56,107.52,0.03]
[1743967720745,31.56481565,107.54,107.52,0.03]
[1743967720938,19.07613357,107.55,107.52,0.03]
[1743967721259,0.42648471,107.57,107.52,31.59481565]
[1743967721561,18.79181043,107.6,107.55,31.56481565]
[1743967721757,18.79181043,107.6,107.56,31.56481565]
[1743967722135,18.79181043,107.6,107.55,31.56481565]
[1743967722336,18.79181043,107.6,107.56,31.56481565]
[1743967723247,18.79181043,107.6,107.56,47.18111892]
[1743967723447,0.28432314,107.59,107.55,47.18111892]
[1743967723764,47.32328049,107.58,107.53,47.18111892]
[1743967723942,0.14216157,107.58,107.54,47.18111892]
[1743967724146,18.79181043,107.58,107.54,47.18111892]
[1743967724455,18.79181043,107.6,107.56,47.18111892]
[1743967724977,65.97292935,107.6,107.52,32.5818]
[1743967725272,18.79181043,107.6,107.56,47.18111892]
[1743967726537,0.28432314,107.6,107.56,47.18111892]
[1743967726733,19.07613357,107.6,107.56,47.18111892]
[1743967727037,66.25725249,107.6,107.55,47.18111892]
[1743967727247,19.07613357,107.6,107.55,56.47891892]
[1743967727460,19.07613357,107.6,107.56,47.18111892]
[1743967727664,75.55085249,107.6,107.53,9.2997]
[1743967727965,75.55085249,107.6,107.54,47.18111892]
[1743967728142,28.36973357,107.6,107.55,47.18111892]
[1743967728347,18.64964886,107.59,107.53,32.549]
[1743967728544,0.42648471,107.6,107.55,47.18111892]
[1743967728768,19.07613357,107.6,107.56,47.18111892]
[1743967728944,19.07613357,107.57,107.52,9.3304]
[1743967729148,47.60760363,107.57,107.52,9.3304]
[1743967729373,47.18111892,107.56,107.52,0.03]
[1743967729871,47.18111892,107.54,107.52,0.03]
[1743967730073,66.25725249,107.53,107.52,0.03]
[1743967730438,23.4172,107.56,107.52,0.03]
[1743967730671,19.07613357,107.55,107.52,0.03]
[1743967730978,66.25725249,107.55,107.52,0.03]
[1743967731151,66.25725249,107.53,107.52,0.03]
[1743967731843,28.37583357,107.53,107.52,0.03]
[1743967732039,66.25725249,107.53,107.52,0.03]
[1743967732446,19.07613357,107.53,107.52,0.03]
[1743967732764,81.263,107.65,107.52,0.03]
[1743967732961,18.64964886,107.56,107.52,47.21111892]
[1743967733161,23.232,107.61,107.54,47.18111892]
[1743967733365,18.64964886,107.58,107.54,47.18111892]
[1743967733949,18.64964886,107.58,107.54,56.47951892]
[1743967735260,47.32328049,107.59,107.54,56.47951892]
[1743967735875,8.53069539,107.64,107.56,47.18111892]
[1743967736177,51.98861431,107.64,107.59,47.18111892]
[1743967736349,0.063,107.64,107.61,47.18111892]
[1743967736745,0.063,107.64,107.63,47.18111892]
[1743967736971,0.063,107.64,107.63,54.56709701]
[1743967737152,0.0001,107.64,107.63,67.40921892]
[1743967737843,0.0001,107.64,107.63,76.70021892]
[1743967738772,0.0001,107.64,107.63,9.291]
[1743967739671,0.0001,107.64,107.62,56.47261892]
[1743967740478,0.0001,107.64,107.61,23.2307]
[1743967740479,0.0001,107.64,107.61,47.18111892]
[1743967740778,0.0001,107.64,107.6,9.2936]
[1743967740981,0.0001,107.64,107.62,47.18111892]
[1743967741483,0.0001,107.64,107.63,47.18111892]
[1743967742175,0.0001,107.64,107.62,47.18111892]
[1743967742378,0.0001,107.64,107.61,56.47391892]
[1743967742781,66.25735249,107.64,107.58,90.5544]
[1743967742967,47.18111892,107.63,107.58,54.83551892]
[1743967743276,66.25735249,107.64,107.59,47.18111892]
[1743967743482,19.07623357,107.64,107.6,47.18111892]
[1743967743773,66.25735249,107.64,107.59,47.18111892]
[1743967744177,19.07623357,107.64,107.6,47.18111892]
[1743967744863,3.35933078,107.63,107.59,56.47511892]
[1743967745064,3.35933078,107.63,107.6,47.18111892]
[1743967745265,3.35933078,107.63,107.61,47.18111892]
[1743967745463,3.35933078,107.63,107.62,47.18111892]
[1743967745686,3.35933078,107.63,107.61,47.18111892]
[1743967745851,0.0001,107.64,107.62,47.18111892]
[1743967746177,0.063,107.7,107.67,26.0]
[1743967746381,0.063,107.73,107.69,47.18111892]
[1743967746764,0.063,107.73,107.71,47.18111892]
[1743967747273,0.063,107.73,107.67,26.0]
[1743967747274,0.063,107.73,107.72,47.18111892]
[1743967747475,0.063,107.73,107.71,47.18111892]
[1743967747987,0.063,107.73,107.7,47.18111892]
[1743967748186,0.063,107.73,107.7,56.46571892]
[1743967749289,47.24411892,107.73,107.68,47.18111892]
[1743967749461,47.24411892,107.73,107.67,32.5066]
[1743967749661,47.24411892,107.73,107.68,47.18111892]
[1743967750080,0.063,107.73,107.69,47.18111892]
[1743967750386,0.063,107.73,107.7,56.46611892]
[1743967751064,0.063,107.73,107.71,47.18111892]
[1743967752161,0.063,107.73,107.72,47.18111892]
[1743967752361,0.063,107.73,107.72,56.46441892]
[1743967752674,0.063,107.73,107.72,9.2833]
[1743967753291,0.063,107.73,107.71,9.2838]
[1743967753987,0.063,107.73,107.69,56.46701892]
[1743967754171,0.063,107.73,107.68,92.1864]
[1743967754377,0.063,107.73,107.69,47.18111892]
[1743967755188,0.063,107.73,107.7,47.18111892]
[1743967755395,0.063,107.73,107.68,32.5033]
[1743967755690,0.063,107.73,107.69,47.18111892]
[1743967755893,47.24411892,107.73,107.68,9.2864]
[1743967756094,19.07613357,107.72,107.68,47.18111892]
[1743967756269,66.25725249,107.72,107.67,56.46791892]
[1743967756468,75.54065249,107.72,107.67,56.46791892]
[1743967756996,66.25725249,107.72,107.67,56.46791892]
[1743967757193,0.063,107.73,107.68,47.18111892]
[1743967757373,47.24411892,107.73,107.68,47.18111892]
[1743967758091,19.13913357,107.73,107.68,47.18111892]
[1743967758394,47.18111892,107.72,107.67,79.68691892]
[1743967758567,19.13913357,107.73,107.68,47.18111892]
[1743967758764,66.32025249,107.73,107.68,47.18111892]
[1743967758997,47.18111892,107.72,107.67,79.68691892]
[1743967759373,47.18111892,107.72,107.67,56.46791892]
[1743967759790,47.18111892,107.72,107.67,9.2868]
[1743967760094,47.18111892,107.72,107.67,56.46791892]
[1743967760488,47.18111892,107.72,107.67,47.18111892]
[1743967760994,0.063,107.73,107.71,47.18111892]
[1743967761294,31.44216715,107.73,107.68,31.37916715]
[1743967761606,31.44216715,107.73,107.67,31.37916715]
[1743967761607,31.37916715,107.72,107.67,31.37916715]
[1743967762392,19.07613357,107.72,107.68,31.37916715]
[1743967762697,31.80565186,107.72,107.68,9.2866]
[1743967763080,19.07613357,107.72,107.68,9.2866]
[1743967763479,0.063,107.73,107.69,31.37916715]
[1743967763681,50.09181601,107.73,107.68,40.66576715]
[1743967763879,50.45530072,107.72,107.67,40.66626715]
[1743967764796,50.45530072,107.72,107.66,23.2201]
[1743967764974,50.45530072,107.7,107.65,40.66846715]
[1743967765597,19.07613357,107.7,107.65,40.66846715]
[1743967765819,19.07613357,107.7,107.66,31.37916715]
[1743967765995,14.02,107.71,107.67,9.2876]
[1743967766302,14.02,107.71,107.69,31.37916715]
[1743967766683,0.063,107.73,107.69,31.37916715]
[1743967767080,0.063,107.73,107.67,32.5066]
[1743967767081,0.063,107.73,107.7,31.37916715]
[1743967767599,40.72456715,107.73,107.68,31.37916715]
[1743967767982,9.3454,107.73,107.68,40.66526715]
[1743967768317,0.063,107.73,107.7,31.37916715]
[1743967768476,0.063,107.73,107.69,31.37916715]
[1743967769884,31.44216715,107.73,107.68,40.66526715]
[1743967770287,0.063,107.73,107.69,31.37916715]
[1743967770705,0.063,107.73,107.71,31.37916715]
[1743967771193,0.063,107.73,107.7,31.37916715]
[1743967772118,0.063,107.73,107.72,40.66246715]
[1743967772411,0.0001,107.73,107.72,59.59643915]
[1743967773099,0.0001,107.73,107.72,28.217272]
[1743967773327,0.0001,107.73,107.72,59.59643915]
[1743967773707,0.063,107.75,107.74,44.933972]
[1743967773919,0.063,107.78,107.74,76.45530072]
[1743967774096,0.063,107.78,107.77,31.37916715]
[1743967774291,0.063,107.78,107.77,38.78285879]
[1743967774495,0.063,107.78,107.77,31.37916715]
[1743967775015,0.063,107.78,107.76,31.37916715]
[1743967775186,0.063,107.78,107.75,40.65956715]
[1743967775584,0.063,107.78,107.76,31.37916715]
[1743967776395,0.063,107.78,107.74,118.1813]
[1743967776594,0.063,107.78,107.74,40.66046715]
[1743967777592,31.44216715,107.78,107.73,40.66136715]
[1743967777915,0.063,107.78,107.74,31.37916715]
[1743967778117,0.063,107.78,107.74,40.66066715]
[1743967778494,0.063,107.78,107.75,31.37916715]
[1743967779413,0.063,107.78,107.74,40.66066715]
[1743967779800,19.07613357,107.77,107.73,40.66136715]
[1743967780116,19.13913357,107.78,107.74,31.37916715]
[1743967780414,19.13913357,107.78,107.74,40.66026715]
[1743967780609,59.79640072,107.78,107.74,40.66026715]
[1743967780821,31.44216715,107.78,107.74,9.2811]
[1743967781005,0.063,107.78,107.74,40.66026715]
[1743967781500,0.063,107.78,107.75,31.37916715]
[1743967781703,0.063,107.78,107.74,9.2811]
[1743967781903,31.44216715,107.84,107.77,31.37916715]
[1743967782105,3.37757565,107.83,107.81,31.37916715]
[1743967782419,3.37757565,107.83,107.82,40.65386715]
[1743967783202,0.20516157,107.84,107.78,23.1948]
[1743967783403,0.20516157,107.84,107.79,40.65636715]
[1743967783404,31.58432872,107.84,107.79,40.65636715]
[1743967783925,0.34732314,107.84,107.8,31.37916715]
[1743967784309,9.62032314,107.84,107.8,40.65506715]
[1743967784508,31.37916715,107.82,107.77,9.279]
[1743967784708,19.13913357,107.84,107.8,31.37916715]
[1743967785010,59.79140072,107.84,107.79,31.37916715]
[1743967785212,50.51830072,107.84,107.79,31.37916715]
[1743967785401,0.063,107.84,107.8,31.37916715]
[1743967785723,0.063,107.84,107.81,31.37916715]
[1743967785925,0.063,107.84,107.8,31.37916715]
[1743967786309,0.063,107.84,107.81,9.2755]
[1743967786624,0.063,107.84,107.8,40.65516715]
[1743967786810,31.44216715,107.84,107.79,40.65636715]
[1743967787202,31.44216715,107.84,107.8,31.37916715]
[1743967787203,0.063,107.84,107.8,31.37916715]
[1743967787905,0.063,107.84,107.79,9.2772]
[1743967788206,31.37916715,107.83,107.79,9.2772]
[1743967788410,40.85812872,107.84,107.79,40.65636715]
[1743967788619,31.58432872,107.84,107.79,40.65636715]
[1743967789128,0.34732314,107.84,107.8,31.37916715]
[1743967789297,0.063,107.84,107.81,31.37916715]
[1743967789503,0.063,107.84,107.71,111.72672965]
[1743967789504,0.14216157,107.8,107.71,111.72672965]
[1743967789703,50.31313915,107.79,107.74,31.37916715]
[1743967789919,31.37916715,107.77,107.72,9.2833]
[1743967790199,31.52132872,107.78,107.73,31.37916715]
[1743967790395,0.14216157,107.78,107.74,31.37916715]
[1743967790625,50.31313915,107.79,107.74,31.37916715]
[1743967791400,45.48132872,107.8,107.75,31.37916715]
[1743967791603,3.38587299,107.79,107.75,31.37916715]
[1743967792416,31.52132872,107.8,107.76,9.2798]
[1743967792731,13.96,107.82,107.78,31.37916715]
[1743967793430,45.33916715,107.82,107.76,32.4795]
[1743967793604,31.37916715,107.81,107.76,40.65896715]
[1743967793806,31.37916715,107.81,107.76,9.2798]
[1743967794004,31.37916715,107.81,107.76,40.65896715]
[1743967794227,19.07613357,107.81,107.77,31.37916715]
[1743967794730,54.61396715,107.82,107.77,31.37916715]
[1743967795526,64.11097758,107.83,107.78,31.37916715]
[1743967795845,31.37916715,107.82,107.77,31.37916715]
[1743967796431,73.38477758,107.83,107.79,9.2772]
[1743967797314,64.11097758,107.83,107.79,9.2772]
[1743967797518,73.38487758,107.83,107.79,9.2772]
[1743967797912,0.28432314,107.82,107.78,9.2779]
[1743967798123,31.52132872,107.81,107.77,9.2786]
[1743967798322,0.14216157,107.81,107.74,32.4852]
[1743967798509,18.79181043,107.81,107.77,31.37916715]
[1743967798710,59.44647758,107.81,107.76,31.37916715]
[1743967799035,59.44647758,107.81,107.74,32.4852]
[1743967799036,31.37916715,107.79,107.74,9.2816]
[1743967799233,31.37916715,107.79,107.74,40.66076715]
[1743967799930,31.80565186,107.78,107.73,40.66116715]
[1743967800111,0.42648471,107.78,107.73,40.66116715]
[1743967800431,18.64964886,107.8,107.74,31.37916715]
[1743967800623,59.30571601,107.8,107.75,31.37916715]
[1743967800815,0.42648471,107.77,107.73,31.37916715]
[1743967801132,0.42648471,107.77,107.71,127.5184]
[1743967801133,23.2159,107.81,107.74,31.37916715]
[1743967801427,0.14216157,107.83,107.78,31.37916715]
[1743967801631,18.64964886,107.82,107.78,31.37916715]
[1743967802019,18.64964886,107.82,107.77,57.37916715]
[1743967802235,31.44216715,107.84,107.79,31.37916715]
[1743967802528,0.063,107.84,107.83,57.37916715]
[1743967802833,0.063,107.84,107.81,9.2755]
[1743967803007,50.23397758,107.84,107.79,26.0]
[1743967803205,50.23397758,107.84,107.77,9.279]
[1743967803206,31.37916715,107.82,107.77,9.279]
[1743967803517,0.063,107.84,107.8,31.37916715]
[1743967803715,0.063,107.84,107.82,31.37916715]
[1743967804526,0.063,107.84,107.83,9.2738]
[1743967804812,0.063,107.84,107.78,42.128472]
[1743967805030,50.51830072,107.84,107.79,40.65636715]
[1743967805415,19.13913357,107.84,107.8,31.37916715]
[1743967805629,19.13913357,107.84,107.79,9.2772]
[1743967805833,50.51830072,107.84,107.79,40.65636715]
[1743967806335,0.063,107.84,107.81,31.37916715]
[1743967806535,0.063,107.84,107.81,40.65426715]
[1743967806716,0.063,107.84,107.8,40.65556715]
[1743967806915,31.58432872,107.84,107.79,40.65596715]
[1743967807531,50.17097758,107.82,107.77,40.65816715]
[1743967808744,18.79181043,107.82,107.78,31.37916715]
[1743967809050,0.063,107.84,107.8,31.37916715]
[1743967809227,0.063,107.84,107.81,31.37916715]
[1743967809547,0.063,107.84,107.83,31.37916715]
[1743967810648,0.063,107.84,107.83,40.65296715]
[1743967812247,0.063,107.85,107.83,40.65296715]
[1743967812557,0.063,107.85,107.84,31.37916715]
[1743967813050,0.03,107.89,107.87,26.0]
[1743967813251,0.17216157,107.89,107.83,32.4584]
[1743967813420,31.52132872,107.87,107.82,9.2743]
[1743967813620,0.14216157,107.85,107.82,9.2743]
[1743967813826,0.14216157,107.85,107.81,31.37916715]
[1743967813827,31.52132872,107.83,107.77,9.279]
[1743967814045,31.37916715,107.83,107.78,31.37916715]
[1743967814243,50.45530072,107.84,107.77,32.4765]
[1743967814417,50.45530072,107.84,107.79,31.37916715]
[1743967814620,9.2729,107.85,107.79,31.37916715]
[1743967814820,27.92114886,107.86,107.8,31.37916715]
[1743967815044,3.38767344,107.85,107.81,31.37916715]
[1743967815240,3.38767344,107.85,107.81,46.96107842]
[1743967815441,3.38767344,107.85,107.82,46.96107842]
[1743967815748,3.38767344,107.85,107.83,46.96107842]
[1743967816046,0.03,107.89,107.86,26.0]
[1743967816247,0.03,107.89,107.87,56.23097842]
[1743967816546,0.03,107.89,107.86,46.96107842]
[1743967816750,47.13323999,107.89,107.83,9.2735]
[1743967816938,0.14216157,107.86,107.82,46.96107842]
[1743967817123,0.14216157,107.82,107.77,9.279]
[1743967817324,46.96107842,107.8,107.76,9.2795]
[1743967817539,18.79181043,107.81,107.76,56.24057842]
[1743967817852,47.24540156,107.8,107.76,9.2795]
[1743967818230,19.07613357,107.81,107.76,56.24057842]
[1743967818549,66.03721199,107.81,107.76,56.24057842]
[1743967818927,66.03721199,107.81,107.76,9.2795]
[1743967819251,19.07613357,107.81,107.76,56.24057842]
[1743967819450,66.03721199,107.81,107.76,56.24057842]
[1743967819639,19.07613357,107.79,107.76,9.2795]
[1743967819841,46.96107842,107.8,107.68,12.5861]
[1743967819842,0.42648471,107.75,107.68,12.5861]
[1743967820027,47.38756313,107.75,107.7,56.24607842]
[1743967820365,0.42648471,107.73,107.67,7.6803]
[1743967820533,0.42648471,107.73,107.66,46.96107842]
[1743967820534,66.03721199,107.71,107.66,46.96107842]
[1743967820730,66.03721199,107.7,107.65,9.2885]
[1743967821031,79.91721199,107.7,107.64,0.063]
[1743967821253,46.96107842,107.66,107.64,0.063]
[1743967821638,66.03721199,107.67,107.64,0.063]
[1743967821834,19.07613357,107.65,107.64,0.063]
[1743967822355,0.42648471,107.65,107.64,0.063]
[1743967822559,66.03721199,107.65,107.64,0.063]
[1743967822855,19.07613357,107.64,107.63,0.063]
[1743967823061,126.87829041,107.64,107.63,0.063]
[1743967823557,130.60149041,107.64,107.61,0.063]
[1743967823858,0.28432314,107.61,107.58,14.17930826]
[1743967824036,0.14216157,107.59,107.58,14.17930826]
[1743967824352,46.96107842,107.61,107.58,23.47460826]
[1743967824558,19.07613357,107.61,107.58,9.2953]
[1743967824754,19.07613357,107.63,107.58,56.25637842]
[1743967825053,17.6032,107.64,107.55,47.02407842]
[1743967825054,0.42648471,107.59,107.55,47.02407842]
[1743967825254,0.42648471,107.59,107.55,0.063]
[1743967825255,47.38756313,107.59,107.55,0.063]
[1743967825464,18.64964886,107.58,107.55,0.063]
[1743967825657,47.38756313,107.57,107.55,0.063]
[1743967825879,66.03721199,107.56,107.55,0.063]
[1743967826830,19.07613357,107.55,107.54,0.03]
[1743967827033,66.03721199,107.55,107.54,0.03]
[1743967828163,19.07613357,107.55,107.54,0.03]
[1743967828352,13.88,107.57,107.54,0.03]
[1743967828553,19.07613357,107.56,107.52,24.01859258]
[1743967828764,13.88,107.57,107.53,46.96107842]
[1743967829058,13.88,107.57,107.55,46.96107842]
[1743967829257,0.14216157,107.61,107.56,46.96107842]
[1743967829461,19.07613357,107.61,107.57,46.96107842]
[1743967829670,13.88,107.62,107.52,59.54717842]
[1743967829841,0.14216157,107.59,107.55,26.0]
[1743967830036,0.14216157,107.59,107.55,72.96107842]
[1743967830236,47.10323999,107.59,107.55,46.96107842]
[1743967830448,0.14216157,107.65,107.57,46.96107842]
[1743967830765,0.14216157,107.66,107.6,46.96107842]
[1743967830939,71.1380821,107.68,107.6,46.96107842]
[1743967831144,46.96107842,107.66,107.61,46.96107842]
[1743967831447,0.14216157,107.65,107.59,46.96107842]
[1743967831637,0.14216157,107.65,107.6,46.96107842]
[1743967831638,18.79181043,107.63,107.6,46.96107842]
[1743967831838,0.14216157,107.67,107.62,46.96107842]
[1743967832056,0.14216157,107.67,107.64,46.96107842]
[1743967832263,57.2580821,107.68,107.66,46.96107842]
[1743967832452,13.88,107.7,107.67,56.24867842]
[1743967833055,13.88,107.74,107.69,46.96107842]
[1743967833249,47.10323999,107.73,107.67,9.2876]
[1743967833447,47.10323999,107.71,107.66,46.96107842]
[1743967833648,0.14216157,107.66,107.62,46.96107842]
[1743967833847,18.933972,107.65,107.61,56.25387842]
[1743967834240,0.14216157,107.64,107.63,46.96107842]
[1743967834569,18.79181043,107.64,107.61,56.25387842]
[1743967834742,0.14216157,107.64,107.61,56.25387842]
[1743967835072,0.14216157,107.64,107.61,9.2928]
[1743967835574,18.933972,107.63,107.59,46.96107842]
[1743967835748,0.28432314,107.69,107.62,46.96107842]
[1743967836072,0.14216157,107.67,107.63,46.96107842]
[1743967836261,18.79181043,107.68,107.64,46.96107842]
[1743967836464,0.14216157,107.67,107.64,56.25127842]
[1743967836651,18.79181043,107.68,107.65,46.96107842]
[1743967836859,18.79181043,107.68,107.66,46.96107842]
[1743967837055,9.2835,107.72,107.67,46.96107842]
[1743967837056,13.88,107.71,107.67,46.96107842]
[1743967837376,46.96107842,107.74,107.69,46.96107842]
[1743967837673,46.96107842,107.73,107.68,46.96107842]
[1743967837977,66.03721199,107.7,107.64,30.1709]
[1743967838273,65.89505042,107.7,107.66,46.96107842]
[1743967838581,46.96107842,107.72,107.68,56.24777842]
[1743967838759,0.14216157,107.72,107.69,46.96107842]
[1743967839148,18.64964886,107.74,107.7,46.96107842]
[1743967839379,18.79181043,107.79,107.72,46.96107842]
[1743967839577,0.14216157,107.77,107.73,46.96107842]
[1743967839872,60.82107842,107.79,107.74,46.96107842]
[1743967840178,65.75288885,107.75,107.68,32.5036]
[1743967840351,0.14216157,107.75,107.73,46.96107842]
[1743967840548,0.14216157,107.78,107.74,56.24187842]
[1743967840750,13.86,107.79,107.76,46.96107842]
[1743967840953,0.14216157,107.8,107.77,46.96107842]
[1743967841158,18.82181043,107.82,107.78,46.96107842]
[1743967841369,47.13323999,107.82,107.78,46.96107842]
[1743967841877,0.03,107.82,107.79,46.96107842]
[1743967842046,0.03,107.82,107.8,46.96107842]
[1743967842259,0.03,107.82,107.76,46.96107842]
[1743967842260,0.03,107.82,107.81,46.96107842]
[1743967842949,0.03,107.82,107.81,56.23657842]
[1743967843775,0.03,107.82,107.78,23.1935]
[1743967844072,0.03,107.82,107.78,46.96107842]
[1743967844278,0.28432314,107.8,107.74,21.3655]
[1743967844450,0.28432314,107.8,107.76,46.96107842]
[1743967844656,0.28432314,107.8,107.74,21.3655]
[1743967844859,47.24540156,107.8,107.76,46.96107842]
[1743967845081,0.28432314,107.8,107.77,46.96107842]
[1743967845261,19.10613357,107.82,107.78,46.96107842]
[1743967845463,66.06721199,107.82,107.77,46.96107842]
[1743967845669,19.07613357,107.8,107.76,46.96107842]
[1743967845984,19.10613357,107.82,107.77,46.96107842]
[1743967846188,0.03,107.82,107.8,46.96107842]
[1743967846480,0.03,107.82,107.81,46.96107842]
[1743967846688,0.03,107.82,107.76,46.96107842]
[1743967846689,0.03,107.82,107.8,46.96107842]
[1743967847086,0.03,107.82,107.79,9.2765]
[1743967847272,0.03,107.82,107.81,46.96107842]
[1743967847787,0.28432314,107.81,107.77,46.96107842]
[1743967847958,0.28432314,107.81,107.75,9.2807]
[1743967848161,0.17216157,107.82,107.78,46.96107842]
[1743967848399,0.17216157,107.82,107.76,46.96107842]
[1743967848400,18.82181043,107.82,107.76,46.96107842]
[1743967848577,0.03,107.82,107.79,46.96107842]
[1743967849299,0.14216157,107.8,107.74,28.86936528]
[1743967849586,18.933972,107.79,107.76,46.96107842]
[1743967849758,18.933972,107.79,107.75,56.24147842]
[1743967849958,65.89505042,107.77,107.71,7.29563671]
[1743967850160,18.933972,107.75,107.71,46.96107842]
[1743967850368,0.14216157,107.74,107.7,46.96107842]
[1743967850575,18.79181043,107.74,107.7,46.96107842]
[1743967850788,23.1953,107.79,107.71,46.96107842]
[1743967850995,75.31531199,107.78,107.73,46.96107842]
[1743967851195,60.78107842,107.79,107.74,46.96107842]
[1743967851491,13.82,107.79,107.75,46.96107842]
[1743967851672,18.933972,107.78,107.7,87.00057821]
[1743967851876,65.89505042,107.76,107.7,9.285]
[1743967852066,46.96107842,107.78,107.73,46.96107842]
[1743967852387,60.78107842,107.79,107.75,46.96107842]
[1743967852687,13.82,107.79,107.75,46.96107842]
[1743967852992,13.82,107.79,107.75,56.24167842]
[1743967853299,70.05837842,107.79,107.75,46.96107842]
[1743967853479,19.07613357,107.78,107.74,46.96107842]
[1743967853860,19.07613357,107.78,107.73,9.2821]
[1743967854061,19.07613357,107.78,107.74,46.96107842]
[1743967854587,19.07613357,107.79,107.76,46.96107842]
[1743967854880,13.82,107.8,107.76,56.24067842]
[1743967855057,19.07613357,107.79,107.71,18.933972]
[1743967855261,19.07613357,107.79,107.75,46.96107842]
[1743967855491,46.96107842,107.81,107.76,46.96107842]
[1743967855790,19.07613357,107.8,107.76,46.96107842]
[1743967856086,66.03721199,107.8,107.75,46.96107842]
[1743967856672,46.96107842,107.79,107.73,12.5593]
[1743967856986,75.31421199,107.8,107.75,46.96107842]
[1743967857492,19.07613357,107.8,107.77,46.96107842]
[1743967857674,18.933972,107.8,107.76,46.96107842]
[1743967858390,75.17145042,107.8,107.76,46.96107842]
[1743967858880,75.17145042,107.8,107.74,9.2811]
[1743967858881,56.38073999,107.79,107.74,46.96107842]
[1743967859089,0.14216157,107.79,107.75,46.96107842]
[1743967859658,65.89505042,107.8,107.75,46.96107842]
[1743967859874,0.14216157,107.79,107.75,46.96107842]
[1743967860080,18.933972,107.78,107.74,46.96107842]
[1743967860786,18.933972,107.78,107.73,9.2821]
[1743967861085,0.03,107.82,107.77,46.96107842]
[1743967861299,65.75288885,107.81,107.76,46.96107842]
[1743967861593,0.14216157,107.81,107.75,46.96107842]
[1743967861783,46.96107842,107.8,107.75,46.96107842]
[1743967861981,46.96107842,107.8,107.72,18.64964886]
[1743967862288,32.4916,107.82,107.75,46.96107842]
[1743967862289,0.14216157,107.79,107.75,46.96107842]
[1743967862469,0.14216157,107.79,107.72,18.64964886]
[1743967862470,0.03,107.82,107.78,46.96107842]
[1743967862789,9.3048,107.82,107.78,46.96107842]
[1743967863295,0.17216157,107.82,107.78,46.96107842]
[1743967863466,0.17216157,107.82,107.75,9.2807]
[1743967863467,47.10323999,107.8,107.75,9.2807]
[1743967863790,66.03721199,107.79,107.74,46.96107842]